bitfinex-derivatives/quotes_BTCF0:USTF0_20250528
["timestamp","ask_amount","ask_price","bid_price","bid_amount"]
[1748446995689,0.48659996,107490.0,107480.0,1.33003701]
[1748446995884,1.06739996,107490.0,107480.0,0.75857731]
[1748446996084,1.26081012,107490.0,107480.0,0.47294964]
[1748446996290,1.31865889,107490.0,107480.0,0.46260704]
[1748446996490,1.12524873,107490.0,107480.0,0.27660107]
[1748446996793,1.31865889,107490.0,107480.0,0.46295116]
[1748446997107,1.12524873,107490.0,107480.0,0.49435116]
[1748446997287,1.12524873,107490.0,107480.0,0.49435143]
[1748446997487,1.42334873,107490.0,107480.0,0.49435167]
[1748446998099,1.42334873,107490.0,107480.0,0.46927173]
[1748446998305,1.61675889,107490.0,107480.0,0.46295188]
[1748446998502,1.61675889,107490.0,107480.0,0.22672218]
[1748446998687,1.72075889,107490.0,107480.0,0.2267227]
[1748446998998,1.72075889,107490.0,107480.0,0.15559734]
[1748446999206,1.72075889,107490.0,107480.0,0.15571734]
[1748446999404,1.72075889,107490.0,107480.0,0.15571831]
[1748446999904,1.72075889,107490.0,107480.0,0.15559831]
[1748447000105,1.72527444,107490.0,107480.0,0.15571945]
[1748447000400,1.81204811,107490.0,107480.0,0.15571945]
[1748447000706,1.81204811,107490.0,107480.0,0.15570643]
[1748447001200,1.81204811,107490.0,107480.0,0.15570646]
[1748447001597,1.81204811,107490.0,107480.0,0.14517804]
[1748447001803,1.81204811,107490.0,107480.0,0.15570555]
[1748447002100,1.60638428,107490.0,107480.0,0.54171172]
[1748447002400,1.60638428,107490.0,107480.0,0.99365124]
[1748447002401,1.50238428,107490.0,107480.0,0.99365124]
[1748447002997,1.25112535,107490.0,107480.0,0.99365124]
[1748447003196,1.44453551,107490.0,107480.0,1.00818913]
[1748447003393,1.44453551,107490.0,107480.0,1.01220191]
[1748447003598,1.50238428,107490.0,107480.0,1.0227284]
[1748447003803,1.54580806,107490.0,107480.0,0.98194977]
[1748447003990,1.58923156,107490.0,107480.0,0.96740927]
[1748447004193,1.58923156,107490.0,107480.0,0.96740974]
[1748447004698,1.58923156,107490.0,107480.0,0.94234377]
[1748447004896,1.58923156,107490.0,107480.0,0.99364217]
[1748447005096,1.58923156,107490.0,107480.0,0.96740898]
[1748447005299,2.14344172,107490.0,107480.0,0.42060188]
[1748447005496,2.14344172,107490.0,107480.0,0.42048188]
[1748447005719,2.14344172,107490.0,107480.0,0.42060188]
[1748447006200,2.14344172,107490.0,107480.0,0.42060282]
[1748447006509,1.95003156,107490.0,107480.0,0.40606269]
[1748447006703,1.95003156,107490.0,107480.0,0.40606265]
[1748447007002,1.95003156,107490.0,107480.0,0.4100768]
[1748447007207,1.95003156,107490.0,107480.0,0.42110584]
[1748447007702,1.95003156,107490.0,107480.0,0.42110522]
[1748447008300,0.9605014,107490.0,107480.0,0.60711233]
[1748447008508,1.53138279,107490.0,107480.0,0.60711233]
[1748447008702,1.57480458,107490.0,107480.0,0.60711119]
[1748447009007,1.57480458,107490.0,107480.0,0.60711092]
[1748447009209,1.13948458,107490.0,107480.0,0.60711092]
[1748447009503,1.53138108,107490.0,107480.0,0.63334103]
[1748447010010,1.53138108,107490.0,107480.0,0.69253559]
[1748447010205,1.53138108,107490.0,107480.0,0.72533564]
[1748447010808,1.53138108,107490.0,107480.0,0.72533567]
[1748447011000,1.49888108,107490.0,107480.0,1.08613567]
[1748447011508,1.49888108,107490.0,107480.0,1.08613526]
[1748447011804,1.49888108,107490.0,107480.0,1.08613518]
[1748447012695,1.49888108,107490.0,107480.0,1.06107144]
[1748447012901,1.49888108,107490.0,107480.0,1.0861353]
[1748447013306,1.30547092,107490.0,107480.0,1.0861353]
[1748447013498,1.49888108,107490.0,107480.0,1.07561019]
[1748447013699,1.49888108,107490.0,107480.0,1.08613562]
[1748447013899,1.49888108,107490.0,107480.0,1.08613588]
[1748447014100,1.49889047,107490.0,107480.0,1.0861379]
[1748447014798,1.06357047,107490.0,107480.0,1.0861379]
[1748447014994,1.49885047,107490.0,107480.0,1.0861379]
[1748447015208,1.49885047,107490.0,107480.0,1.10067687]
[1748447015393,1.49885047,107490.0,107480.0,1.08613812]
[1748447015592,1.49885047,107490.0,107480.0,1.07159937]
[1748447015799,1.49885047,107490.0,107480.0,1.08613753]
[1748447016301,0.83357047,107490.0,107480.0,1.08613753]
[1748447016609,1.45885047,107490.0,107480.0,1.08613753]
[1748447016906,1.45885047,107490.0,107480.0,1.0861386]
[1748447017093,1.45885047,107490.0,107480.0,1.07561216]
[1748447017299,1.45885047,107490.0,107480.0,1.06107346]
[1748447017498,1.45885047,107490.0,107480.0,1.07561216]
[1748447017695,1.45885047,107490.0,107480.0,1.08613919]
[1748447017900,1.48965047,107490.0,107480.0,0.86733209]
[1748447018099,1.48965047,107490.0,107480.0,0.69254007]
[1748447018299,1.48965047,107490.0,107480.0,0.69242007]
[1748447018500,1.48965047,107490.0,107480.0,0.69242102]
[1748447018708,1.48966958,107490.0,107480.0,0.66630932]
[1748447019307,1.48966958,107490.0,107480.0,0.6820172]
[1748447019508,1.48966958,107490.0,107480.0,0.69254608]
[1748447020007,1.48966958,107490.0,107480.0,0.69254661]
[1748447020601,1.48966958,107490.0,107480.0,0.50654001]
[1748447020809,1.48966958,107490.0,107480.0,0.69254711]
[1748447022307,1.48966958,107490.0,107480.0,0.63335255]
[1748447022500,1.54751835,107490.0,107480.0,0.63335475]
[1748447023010,1.54751835,107490.0,107480.0,0.63335662]
[1748447023311,0.8126779,107490.0,107480.0,0.98245925]
[1748447023501,0.8126779,107490.0,107480.0,1.0274379]
[1748447023502,0.7808779,107490.0,107480.0,1.0274379]
[1748447023701,1.25960941,107490.0,107480.0,1.05369385]
[1748447023910,1.25960941,107490.0,107480.0,1.05369313]
[1748447024110,1.20176064,107490.0,107480.0,1.05369311]
[1748447024412,1.20176064,107490.0,107480.0,1.07994875]
[1748447024597,1.20176064,107490.0,107480.0,1.07995058]
[1748447024799,1.03176064,107490.0,107480.0,1.07995058]
[1748447025206,1.03176064,107490.0,107480.0,1.07995049]
[1748447025511,1.03176064,107490.0,107480.0,1.05369484]
[1748447025813,1.03172064,107490.0,107480.0,1.10616644]
[1748447026608,1.2051308,107490.0,107480.0,1.10616632]
[1748447026804,1.5151308,107490.0,107480.0,1.10616632]
[1748447027109,1.2170308,107490.0,107480.0,1.10616632]
[1748447027305,1.2472308,107490.0,107480.0,1.16541517]
[1748447027706,1.2472308,107490.0,107480.0,1.16541449]
[1748447027906,1.2472308,107490.0,107480.0,1.14033885]
[1748447028106,1.2472308,107490.0,107480.0,1.16541449]
[1748447028613,0.91373929,107490.0,107480.0,1.16541406]
[1748447028812,1.16724054,107490.0,107480.0,1.16541406]
[1748447029201,1.16724054,107490.0,107480.0,1.05369576]
[1748447029403,1.16724054,107490.0,107480.0,1.05369575]
[1748447029604,1.16724054,107490.0,107480.0,1.03915871]
[1748447029807,1.16724054,107490.0,107480.0,1.05369706]
[1748447031016,1.13704054,107490.0,107480.0,1.05369706]
[1748447031213,1.13704054,107490.0,107480.0,1.11016679]
[1748447031413,0.90704054,107490.0,107480.0,1.12070813]
[1748447031613,0.34585074,107490.0,107480.0,1.12070813]
[1748447031811,0.58760058,107490.0,107480.0,1.13524645]
[1748447032008,0.77359878,107490.0,107480.0,1.13524598]
[1748447032317,0.532934,107490.0,107480.0,1.29367684]
[1748447032511,0.7125444,107490.0,107480.0,1.29367614]
[1748447032714,0.7125444,107490.0,107480.0,1.10026598]
[1748447033011,0.7125444,107490.0,107480.0,1.10026581]
[1748447033211,0.7125444,107490.0,107480.0,1.08572822]
[1748447033417,0.7125444,107490.0,107480.0,1.10026573]
[1748447033619,0.7125444,107490.0,107480.0,1.10026574]
[1748447033816,0.7125444,107490.0,107480.0,1.07518811]
[1748447034018,0.7125444,107490.0,107480.0,1.0999405]
[1748447034213,0.7125444,107490.0,107480.0,1.07518811]
[1748447034415,0.7125444,107490.0,107480.0,1.08972563]
[1748447034717,0.7125444,107490.0,107480.0,1.0999405]
[1748447035016,0.0913862,107490.0,107480.0,1.64335066]
[1748447035214,0.0313862,107490.0,107480.0,1.90664657]
[1748447035513,0.00153597,107500.0,107490.0,0.1859982]
[1748447035723,0.00153597,107500.0,107490.0,2.20990612]
[1748447036013,0.00153597,107500.0,107490.0,2.61260792]
[1748447036217,0.77188987,107520.0,107510.0,0.1859635]
[1748447036411,1.0240411,107520.0,107510.0,1.02491833]
[1748447036605,1.0240411,107520.0,107510.0,0.96058391]
[1748447036809,1.0567411,107520.0,107510.0,0.96008697]
[1748447037118,0.7467411,107520.0,107510.0,0.96020699]
[1748447037313,0.7467411,107520.0,107510.0,0.95000489]
[1748447037522,0.8487411,107520.0,107510.0,0.94567257]
[1748447037713,0.8487411,107520.0,107510.0,0.96020674]
[1748447038020,0.8487411,107520.0,107510.0,0.98920625]
[1748447038219,0.8487411,107520.0,107510.0,0.98920642]
[1748447038715,0.7557666,107520.0,107510.0,0.98920642]
[1748447038922,0.1357,107520.0,107510.0,1.18261106]
[1748447039116,0.103,107520.0,107510.0,1.18261069]
[1748447039418,0.103,107520.0,107510.0,1.82331763]
[1748447039717,0.103,107520.0,107510.0,1.82060597]
[1748447039918,0.103,107520.0,107510.0,1.78562181]
[1748447040313,0.103,107520.0,107510.0,1.78612487]
[1748447040515,0.103,107520.0,107510.0,1.78611738]
[1748447040715,0.103,107520.0,107510.0,2.25406854]
[1748447040922,0.103,107520.0,107510.0,2.28896294]
[1748447041222,0.023,107520.0,107510.0,2.2889572]
[1748447041615,0.003,107520.0,107510.0,2.34798008]
[1748447041922,0.003,107520.0,107510.0,1.80910008]
[1748447042118,0.003,107520.0,107510.0,2.34790008]
[1748447042327,0.023,107520.0,107510.0,2.06448992]
[1748447042513,0.2089463,107520.0,107510.0,1.71910008]
[1748447042718,0.40235646,107520.0,107510.0,1.46666704]
[1748447043026,0.64555646,107520.0,107510.0,1.40854142]
[1748447043228,0.4521463,107520.0,107510.0,1.37364671]
[1748447043413,0.4521463,107520.0,107510.0,1.37364775]
[1748447043614,0.4501463,107520.0,107510.0,1.40954246]
[1748447043811,0.4501463,107520.0,107510.0,1.40954205]
[1748447044015,0.4501463,107520.0,107510.0,1.46856493]
[1748447044322,0.4501463,107520.0,107510.0,1.46843595]
[1748447044524,0.4501463,107520.0,107510.0,1.46855595]
[1748447044825,0.45466185,107520.0,107510.0,1.43366124]
[1748447045027,0.45466185,107520.0,107510.0,1.43366132]
[1748447045227,0.64807201,107520.0,107510.0,1.34366132]
[1748447045531,0.64807201,107520.0,107510.0,0.98286132]
[1748447045827,0.64807201,107520.0,107510.0,0.92651028]
[1748447046024,0.64807201,107520.0,107510.0,0.92639028]
[1748447046227,0.64807201,107520.0,107510.0,0.92650999]
[1748447046429,0.64807201,107520.0,107510.0,0.95680999]
[1748447046819,0.64807201,107520.0,107510.0,0.95668999]
[1748447047019,0.64807201,107520.0,107510.0,0.95668998]
[1748447047227,0.45466185,107520.0,107510.0,0.95680998]
[1748447047427,0.64807201,107520.0,107510.0,0.95680998]
[1748447047932,0.45466185,107520.0,107510.0,0.95680998]
[1748447048120,0.64807201,107520.0,107510.0,0.95680998]
[1748447048524,0.64807201,107520.0,107510.0,0.94663713]
[1748447048729,1.08303201,107520.0,107510.0,0.95681061]
[1748447048930,1.08303201,107520.0,107510.0,0.89778773]
[1748447049523,1.08303201,107520.0,107510.0,0.87307962]
[1748447049719,1.44383201,107520.0,107510.0,0.4745887]
[1748447050028,1.93534217,107520.0,107510.0,0.27458934]
[1748447050228,1.93534217,107520.0,107510.0,0.27458974]
[1748447050430,1.93534217,107520.0,107510.0,0.27446974]
[1748447050737,1.93534217,107520.0,107510.0,0.27458974]
[1748447050933,1.93534217,107520.0,107510.0,0.27447131]
[1748447051125,1.93534217,107520.0,107510.0,0.27459131]
[1748447051331,1.93534217,107520.0,107510.0,0.27459176]
[1748447051528,1.93534217,107520.0,107510.0,0.27459362]
[1748447051927,1.93534217,107520.0,107510.0,0.2745936]
[1748447052232,1.74193201,107520.0,107510.0,0.27559359]
[1748447052428,1.74193201,107520.0,107510.0,0.25087972]
[1748447052631,1.74193201,107520.0,107510.0,0.27559561]
[1748447052837,1.74193201,107520.0,107510.0,0.08963201]
[1748447053130,1.74193201,107520.0,107510.0,0.08963203]
[1748447053627,1.30697201,107520.0,107510.0,0.08963203]
[1748447053832,1.74189201,107520.0,107510.0,0.08963203]
[1748447054032,1.30697201,107520.0,107510.0,0.27559563]
[1748447054234,1.74189201,107520.0,107510.0,0.30559563]
[1748447054526,1.74189201,107520.0,107510.0,0.30558378]
[1748447055027,1.74189201,107520.0,107510.0,0.29104823]
[1748447055338,1.74189201,107520.0,107510.0,0.30558381]
[1748447056029,1.74189201,107520.0,107510.0,0.30558579]
[1748447056228,1.74189201,107520.0,107510.0,0.11962296]
[1748447056931,1.74189201,107520.0,107510.0,0.09398726]
[1748447057138,1.93530217,107520.0,107510.0,0.09398726]
[1748447057431,1.93530217,107520.0,107510.0,0.11869535]
[1748447057636,1.93530217,107520.0,107510.0,0.13323092]
[1748447057938,2.02831417,107520.0,107510.0,0.13323092]
[1748447058127,2.02831417,107520.0,107510.0,0.13323147]
[1748447058328,2.02831417,107520.0,107510.0,0.13311147]
[1748447058539,2.02831417,107520.0,107510.0,0.11869816]
[1748447058540,2.08618265,107520.0,107510.0,0.11869816]
[1748447058838,2.08618265,107520.0,107510.0,0.13323514]
[1748447059040,2.08618265,107520.0,107510.0,0.0732351]
[1748447059726,1.78808265,107520.0,107510.0,0.07323536]
[1748447059931,1.78808265,107520.0,107510.0,0.07323538]
[1748447060123,1.78808265,107520.0,107510.0,0.07323727]
[1748447060831,1.78808265,107520.0,107510.0,0.07311728]
[1748447061239,1.78808265,107520.0,107510.0,0.07323702]
[1748447061736,1.87488537,107520.0,107510.0,0.09322856]
[1748447062039,1.87488537,107520.0,107510.0,0.08776567]
[1748447062338,1.87488537,107520.0,107510.0,0.07310864]
[1748447062540,1.81701689,107520.0,107510.0,0.08776572]
[1748447062740,1.81701689,107520.0,107510.0,0.08776606]
[1748447062941,1.81701689,107520.0,107510.0,0.08776763]
[1748447063541,1.81701689,107520.0,107510.0,0.08776773]
[1748447063945,1.43019657,107520.0,107510.0,0.08776773]
[1748447064243,1.81701689,107520.0,107510.0,0.08776825]
[1748447064631,1.81701689,107520.0,107510.0,0.08776726]
[1748447064828,1.81701689,107520.0,107510.0,0.08776836]
[1748447065441,1.81693689,107520.0,107510.0,0.08776836]
[1748447065949,1.81693689,107520.0,107510.0,0.11059728]
[1748447066247,1.81693689,107520.0,107510.0,0.08776601]
[1748447066442,1.81693689,107520.0,107510.0,0.08776565]
[1748447066638,1.81693689,107520.0,107510.0,0.06305986]
[1748447066846,1.81693689,107520.0,107510.0,0.08774606]
[1748447067645,1.81693689,107520.0,107510.0,0.08774567]
[1748447068149,1.81693689,107520.0,107510.0,0.08774488]
[1748447068847,1.81693689,107520.0,107510.0,0.08774489]
[1748447069253,1.81693689,107520.0,107510.0,0.11974454]
[1748447069454,1.81693689,107520.0,107510.0,0.08774454]
[1748447069843,1.81693689,107520.0,107510.0,0.08774508]
[1748447070154,1.92065689,107520.0,107510.0,0.12004508]
[1748447070351,1.92065689,107520.0,107510.0,0.12004485]
[1748447070951,1.53383657,107520.0,107510.0,0.12004485]
[1748447071247,1.92065689,107520.0,107510.0,0.10989729]
[1748447071453,1.92065689,107520.0,107510.0,0.12004659]
[1748447072047,1.92065689,107520.0,107510.0,0.10550916]
[1748447072348,1.92065689,107520.0,107510.0,0.12004898]
[1748447073450,1.92065689,107520.0,107510.0,0.1055126]
[1748447073641,1.92065689,107520.0,107510.0,0.09535986]
[1748447074459,1.92065689,107520.0,107510.0,0.10989729]
[1748447074752,1.92065689,107520.0,107510.0,0.13458941]
[1748447075459,1.09899657,107520.0,107510.0,0.13459163]
[1748447075757,1.92065689,107520.0,107510.0,0.13459163]
[1748447076349,1.92065689,107520.0,107510.0,0.13459247]
[1748447076550,1.92065689,107520.0,107510.0,0.12005504]
[1748447076749,1.92065689,107520.0,107510.0,0.13459247]
[1748447077452,1.92065689,107520.0,107510.0,0.12005612]
[1748447077653,1.82764489,107520.0,107510.0,0.13459355]
[1748447078559,1.82764489,107520.0,107510.0,0.13459493]
[1748447078961,1.82764489,107520.0,107510.0,0.13459489]
[1748447079159,1.00598457,107520.0,107510.0,0.13459489]
[1748447079459,1.00598457,107520.0,107510.0,0.54055955]
[1748447079460,1.57099473,107520.0,107510.0,0.54055955]
[1748447079660,1.19416256,107520.0,107510.0,0.60425955]
[1748447079960,1.62896256,107520.0,107510.0,0.60425955]
[1748447080353,1.62896256,107520.0,107510.0,0.60425992]
[1748447080658,1.62896256,107520.0,107510.0,0.4081338]
[1748447080864,1.62896256,107520.0,107510.0,0.41829632]
[1748447081354,1.62896256,107520.0,107510.0,0.60425992]
[1748447081550,1.62896256,107520.0,107510.0,0.61879739]
[1748447081752,1.62896256,107520.0,107510.0,0.60426088]
[1748447081951,1.62896256,107520.0,107510.0,0.5940974]
[1748447082151,1.62896256,107520.0,107510.0,0.41829728]
[1748447082347,1.62896256,107520.0,107510.0,0.60426204]
[1748447082559,1.62896256,107520.0,107510.0,0.41829854]
[1748447083262,1.62896256,107520.0,107510.0,0.4527303]
[1748447083464,1.62896256,107520.0,107510.0,0.47744542]
[1748447083952,1.69166256,107520.0,107510.0,0.4526103]
[1748447084147,1.69166256,107520.0,107510.0,0.47744538]
[1748447084355,1.69166256,107520.0,107510.0,0.47744659]
[1748447084546,1.69166256,107520.0,107510.0,0.46291029]
[1748447084749,1.69166256,107520.0,107510.0,0.49198291]
[1748447084949,1.88507272,107520.0,107510.0,0.4467466]
[1748447085158,1.88507272,107520.0,107510.0,0.44674659]
[1748447085462,1.88507272,107520.0,107510.0,0.4320917]
[1748447085652,1.88507272,107520.0,107510.0,0.4365666]
[1748447085853,1.69166256,107520.0,107510.0,0.4220303]
[1748447086658,1.63369473,107520.0,107510.0,0.4220303]
[1748447086864,1.63369473,107520.0,107510.0,0.44674988]
[1748447087250,1.82710489,107520.0,107510.0,0.44674988]
[1748447087564,1.82710489,107520.0,107510.0,0.38761713]
[1748447088058,1.82710489,107520.0,107510.0,0.38761714]
[1748447088259,1.63369473,107520.0,107510.0,0.38761714]
[1748447088457,1.63369473,107520.0,107510.0,0.41385671]
[1748447089063,1.66629473,107520.0,107510.0,0.41385671]
[1748447089258,1.66629473,107520.0,107510.0,0.31861685]
[1748447089461,0.3445924,107510.0,107480.0,0.20390449]
[1748447089758,0.79818405,107490.0,107480.0,0.25655853]
[1748447089962,1.17818405,107490.0,107480.0,0.22154086]
[1748447090272,1.24188405,107490.0,107480.0,0.22166086]
[1748447090462,1.24188405,107490.0,107480.0,0.22154086]
[1748447090463,1.32884758,107490.0,107480.0,0.22154086]
[1748447090668,1.24188405,107490.0,107480.0,0.22166086]
[1748447091366,1.24188405,107490.0,107480.0,0.22466086]
[1748447091563,0.5659982,107490.0,107480.0,0.59167626]
[1748447091767,1.19412836,107490.0,107480.0,0.95247626]
[1748447091959,1.19412836,107490.0,107480.0,1.01170194]
[1748447092360,1.19412836,107490.0,107480.0,1.01470194]
[1748447092761,0.5659982,107490.0,107480.0,1.01470194]
[1748447093068,1.19412836,107490.0,107480.0,1.01470194]
[1748447094167,1.19412836,107490.0,107480.0,0.82868654]
[1748447094375,1.58512836,107490.0,107480.0,0.46788654]
[1748447094562,1.61832836,107490.0,107480.0,0.56228654]
[1748447095467,1.81173852,107490.0,107480.0,0.38621743]
[1748447095671,0.1860154,107480.0,107470.0,0.06792518]
[1748447095859,1.23611313,107480.0,107470.0,0.17632518]
[1748447096062,1.67083313,107480.0,107470.0,0.17632518]
[1748447096370,1.67083313,107480.0,107470.0,0.17644518]
[1748447097070,1.68444897,107480.0,107470.0,0.18044518]
[1748447097572,1.68444897,107480.0,107470.0,0.18444518]
[1748447098968,1.5830614,107480.0,107470.0,0.18444518]
[1748447099164,1.62646406,107480.0,107470.0,0.18444518]
[1748447099967,1.4330539,107480.0,107470.0,0.18444518]
[1748447100163,1.62646406,107480.0,107470.0,0.18444518]
[1748447101265,1.19174406,107480.0,107470.0,0.18444518]
[1748447101469,1.62646406,107480.0,107470.0,0.18444518]
[1748447101669,1.62646406,107480.0,107470.0,0.19430273]
[1748447102064,1.62646406,107480.0,107470.0,0.19430157]
[1748447102768,1.5830614,107480.0,107470.0,0.19430157]
[1748447103365,1.5830614,107480.0,107470.0,0.19429952]
[1748447103575,1.5830614,107480.0,107470.0,0.38033222]
[1748447103774,0.59413124,107480.0,107470.0,0.38033221]
[1748447104081,0.96435124,107480.0,107470.0,0.74113221]
[1748447104272,0.77833584,107480.0,107470.0,0.74113221]
[1748447104573,0.96435124,107480.0,107470.0,0.74113221]
[1748447104771,0.96435124,107480.0,107470.0,0.74113203]
[1748447105364,0.96435124,107480.0,107470.0,0.73127788]
[1748447105564,0.96886679,107480.0,107470.0,2.24113154]
[1748447106069,0.96886679,107480.0,107470.0,2.26307788]
[1748447106266,1.16227695,107480.0,107470.0,2.27293092]
[1748447106970,1.19287695,107480.0,107470.0,2.27293092]
[1748447107366,1.19287695,107480.0,107470.0,2.27293088]
[1748447107565,0.96287695,107480.0,107470.0,2.27293149]
[1748447107766,0.96287695,107480.0,107470.0,0.77293149]
[1748447108375,1.13287695,107480.0,107470.0,0.77293166]
[1748447108762,1.13287695,107480.0,107470.0,0.22609896]
[1748447108963,1.16507695,107480.0,107470.0,0.22597896]
[1748447109170,0.97166679,107480.0,107470.0,0.22609883]
[1748447109470,1.16507695,107480.0,107470.0,0.22470317]
[1748447110273,1.16507695,107480.0,107470.0,0.41073754]
[1748447110677,1.16507695,107480.0,107470.0,0.44323754]
[1748447111078,1.16507695,107480.0,107470.0,0.43338222]
[1748447111277,0.28813139,107480.0,107470.0,0.99744954]
[1748447111577,0.06451555,107480.0,107470.0,1.00744954]
[1748447111970,0.06451555,107480.0,107470.0,1.00745013]
[1748447112170,0.06451555,107480.0,107470.0,1.11109013]
[1748447112378,0.25053095,107480.0,107470.0,1.11109013]
[1748447112573,0.25053095,107480.0,107470.0,1.11109232]
[1748447113079,0.25053095,107480.0,107470.0,1.1634829]
[1748447113576,0.44394111,107480.0,107470.0,0.58410202]
[1748447113773,1.96550187,107480.0,107470.0,0.15104952]
[1748447113982,1.96550187,107480.0,107470.0,0.02079252]
[1748447113983,1.99760187,107480.0,107470.0,0.02079252]
[1748447114281,2.02980187,107480.0,107470.0,0.02091583]
[1748447114482,2.02980187,107480.0,107470.0,0.02079584]
[1748447114673,2.08767201,107480.0,107470.0,0.02091584]
[1748447114976,1.89426185,107480.0,107470.0,0.03091584]
[1748447115178,1.89426185,107480.0,107470.0,0.28145401]
[1748447115370,1.89426185,107480.0,107470.0,0.49145401]
[1748447115371,2.08767201,107480.0,107470.0,0.49145401]
[1748447115569,2.08767201,107480.0,107470.0,0.30542121]
[1748447115883,2.08767201,107480.0,107470.0,0.30542533]
[1748447116177,2.08767201,107480.0,107470.0,0.29554952]
[1748447116376,2.08767201,107480.0,107470.0,0.30542534]
[1748447116586,1.36607201,107480.0,107470.0,0.30542534]
[1748447116770,1.72687201,107480.0,107470.0,0.30542534]
[1748447117382,1.72687201,107480.0,107470.0,0.29554952]
[1748447117577,1.72687201,107480.0,107470.0,0.3054255]
[1748447117775,1.72687201,107480.0,107470.0,0.30542547]
[1748447117979,1.72687201,107480.0,107470.0,0.49145817]
[1748447118178,1.77031588,107480.0,107470.0,0.49145817]
[1748447118491,1.77031588,107480.0,107470.0,0.49145837]
[1748447118669,1.77031588,107480.0,107470.0,0.48158222]
[1748447118979,1.77031588,107480.0,107450.0,0.89822659]
[1748447118980,0.18605,107460.0,107450.0,0.05378659]
[1748447119175,2.12798138,107460.0,107450.0,0.06675566]
[1748447119481,2.30800211,107460.0,107450.0,0.05378659]
[1748447119776,2.30800211,107460.0,107450.0,0.06682291]
[1748447119981,2.13269748,107460.0,107450.0,0.06682492]
[1748447120382,2.13269748,107460.0,107450.0,0.05390659]
[1748447120577,2.13369748,107460.0,107450.0,0.05990659]
[1748447120970,2.13369748,107460.0,107450.0,0.07282586]
[1748447121580,2.17709743,107460.0,107450.0,0.07282586]
[1748447121770,2.17709743,107460.0,107450.0,0.08574645]
[1748447121969,2.17709743,107460.0,107450.0,0.02543528]
[1748447122179,2.17709743,107460.0,107450.0,0.03835586]
[1748447122371,2.0901767,107460.0,107450.0,0.02543528]
[1748447122572,1.9888296,107460.0,107450.0,0.02543528]
[1748447122775,1.9888296,107460.0,107450.0,0.03835585]
[1748447122976,1.9888296,107460.0,107450.0,0.02543528]
[1748447123177,1.9888296,107460.0,107450.0,0.03835589]
[1748447123478,1.9888296,107460.0,107450.0,0.03834744]
[1748447124083,1.9888296,107460.0,107450.0,0.02543528]
[1748447124284,1.9888296,107460.0,107450.0,0.03234808]
[1748447124285,1.9878296,107460.0,107450.0,0.03234808]
[1748447124481,1.9878296,107460.0,107450.0,0.03434808]
[1748447124884,2.2859296,107460.0,107450.0,0.02934808]
[1748447125088,2.2859296,107460.0,107450.0,0.02834066]
[1748447125283,2.2859296,107460.0,107450.0,0.03034066]
[1748447125478,2.2859296,107460.0,107450.0,0.03034033]
[1748447125688,2.2859296,107460.0,107450.0,0.03033587]
[1748447126190,2.2859296,107460.0,107450.0,0.0303359]
[1748447126576,2.2859296,107460.0,107450.0,0.06283161]
[1748447126883,2.2859296,107460.0,107450.0,0.04993528]
[1748447127084,1.63977391,107460.0,107450.0,0.06283161]
[1748447127281,2.2859296,107460.0,107450.0,0.06283064]
[1748447127682,2.2859296,107460.0,107450.0,0.06282803]
[1748447128085,2.2859696,107460.0,107450.0,0.04993528]
[1748447128287,2.2859696,107460.0,107450.0,0.06277284]
[1748447128989,2.2859696,107460.0,107450.0,0.06277035]
[1748447129188,0.1860674,107450.0,107440.0,0.00292952]
[1748447129392,1.21208309,107450.0,107440.0,0.00292952]
[1748447129691,1.31572309,107450.0,107440.0,0.00304952]
[1748447129888,1.31572309,107450.0,107440.0,0.00292952]
[1748447130188,1.31572309,107450.0,107440.0,0.00304952]
[1748447130382,1.31572309,107450.0,107440.0,0.00704952]
[1748447131080,1.31572309,107450.0,107440.0,0.00904952]
[1748447131283,1.31572309,107450.0,107440.0,0.04214952]
[1748447131593,1.75028309,107450.0,107440.0,0.05214952]
[1748447131778,1.75028309,107450.0,107440.0,0.04214952]
[1748447132385,1.79355609,107450.0,107440.0,0.04214952]
[1748447135789,1.79355609,107450.0,107440.0,0.00904952]
[1748447135989,1.79807164,107450.0,107440.0,0.00904952]
[1748447136189,1.79807164,107450.0,107440.0,0.04104952]
[1748447136791,1.79804834,107450.0,107440.0,0.04104952]
[1748447138901,1.79804834,107450.0,107440.0,0.03825952]
[1748447140006,1.73994507,107450.0,107440.0,0.03825952]
[1748447140997,1.73997999,107450.0,107440.0,0.03825952]
[1748447141189,1.73997999,107450.0,107440.0,0.0511144]
[1748447141390,1.73997999,107450.0,107440.0,0.03825952]
[1748447141590,0.1861193,107420.0,107410.0,0.39569985]
[1748447141796,1.1160998,107420.0,107410.0,0.24]
[1748447142106,1.1160998,107420.0,107410.0,0.24012]
[1748447142107,1.1804998,107420.0,107410.0,0.24012]
[1748447142296,1.1804998,107420.0,107410.0,0.24]
[1748447142495,1.1804998,107420.0,107410.0,0.25310122]
[1748447142699,1.1814998,107420.0,107410.0,0.26022279]
[1748447143000,1.5723998,107420.0,107410.0,0.2793]
[1748447143207,1.5723998,107420.0,107410.0,0.27942]
[1748447143405,1.5723998,107420.0,107410.0,0.22942]
[1748447143795,1.5723998,107420.0,107410.0,0.24253253]
[1748447144001,1.5713998,107420.0,107410.0,0.22442]
[1748447144401,1.5723998,107420.0,107410.0,0.23042]
[1748447144798,1.5713998,107420.0,107410.0,0.22442]
[1748447145003,0.51944738,107420.0,107410.0,0.7713566]
[1748447145209,0.31100612,107420.0,107410.0,0.99716902]
[1748447145506,0.27606549,107430.0,107420.0,0.1861193]
[1748447145507,0.00013952,107430.0,107420.0,0.1861193]
[1748447145808,0.32830902,107450.0,107440.0,0.1860846]
[1748447146007,0.46198985,107450.0,107440.0,0.88599594]
[1748447146207,0.27591275,107450.0,107440.0,1.10370433]
[1748447146410,0.22198005,107450.0,107440.0,1.46450433]
[1748447146602,0.00591275,107450.0,107440.0,1.65178028]
[1748447146910,0.00451555,107450.0,107440.0,1.65178028]
[1748447147202,0.19058295,107450.0,107440.0,1.61685566]
[1748447147407,0.19458295,107450.0,107440.0,1.61685566]
[1748447148007,0.19358295,107450.0,107440.0,1.95992766]
[1748447148202,0.00751555,107450.0,107440.0,1.90757633]
[1748447148502,0.18759814,107460.0,107450.0,0.1860674]
[1748447148705,0.25758624,107460.0,107450.0,1.25603766]
[1748447148900,0.18618962,107460.0,107450.0,1.34910166]
[1748447149106,0.18618962,107460.0,107450.0,1.13768499]
[1748447149304,0.18618962,107460.0,107450.0,1.13780499]
[1748447149305,0.19070517,107460.0,107450.0,1.13780499]
[1748447150204,0.19470517,107460.0,107450.0,1.13880499]
[1748447150602,0.19470517,107460.0,107450.0,1.17370146]
[1748447151105,0.19770517,107460.0,107450.0,1.17370146]
[1748447151504,0.19470517,107460.0,107450.0,1.21480146]
[1748447151700,0.19670517,107460.0,107450.0,1.21480146]
[1748447151906,0.01065507,107460.0,107450.0,1.21480146]
[1748447152301,0.01065507,107460.0,107450.0,1.21380146]
[1748447152501,0.01065507,107460.0,107450.0,1.42521813]
[1748447152701,0.01065507,107460.0,107450.0,1.48424525]
[1748447152898,0.01065507,107460.0,107450.0,1.42521813]
[1748447153410,0.01065507,107460.0,107450.0,1.39032166]
[1748447153813,0.01065507,107460.0,107450.0,2.89032166]